[Event "Titled Tuesday Blitz August 15 Early 2023"]
[White "campochess"]
[Black "Iunusovnuriddin"]
[WhiteElo "2162"]
[BlackElo "2320"]
[Result "1-0"]
[Round "6"]
[TimeControl "180+1"]
[Date "2023.08.15"]
[WhiteClock "0:01:39"]
[BlackClock "0:00:02"]
[Board "178"]

1. e4 {[%clk 0:02:58]}  e5 {[%clk 0:02:59]} 2. Bc4 {[%clk 0:02:57]}  Nf6 {[%clk 0:02:59]} 3. d3 {[%clk 0:02:56]}  Nc6 {[%clk 0:02:57]} 4. Nc3 {[%clk 0:02:49]}  Be7 {[%clk 0:02:54]} 5. Nf3 {[%clk 0:02:48]}  O-O {[%clk 0:02:53]} 6. O-O {[%clk 0:02:47]}  d6 {[%clk 0:02:53]} 7. a3 {[%clk 0:02:47]}  Na5 {[%clk 0:02:52]} 8. Ba2 {[%clk 0:02:46]}  c5 {[%clk 0:02:53]} 9. b4 {[%clk 0:02:43]}  Nc6 {[%clk 0:02:16]} 10. Rb1 {[%clk 0:02:41]}  cxb4 {[%clk 0:02:12]} 11. axb4 {[%clk 0:02:40]}  Bg4 {[%clk 0:02:12]} 12. h3 {[%clk 0:02:35]}  Bh5 {[%clk 0:02:12]} 13. Be3 {[%clk 0:02:32]}  Rc8 {[%clk 0:01:45]} 14. Nd5 {[%clk 0:02:26]}  Nxd5 {[%clk 0:01:40]} 15. Bxd5 {[%clk 0:02:22]}  a6 {[%clk 0:01:38]} 16. b5 {[%clk 0:02:21]}  axb5 {[%clk 0:01:26]} 17. Rxb5 {[%clk 0:02:20]}  Qd7 {[%clk 0:01:24]} 18. Qb1 {[%clk 0:02:13]}  Rc7 {[%clk 0:00:25]} 19. Nd2 {[%clk 0:02:11]}  Rfc8 {[%clk 0:00:19]} 20. Nc4 {[%clk 0:02:10]}  Qd8 {[%clk 0:00:16]} 21. Nb6 {[%clk 0:02:05]}  Rb8 {[%clk 0:00:15]} 22. Bc4 {[%clk 0:02:03]}  Na7 {[%clk 0:00:12]} 23. Rb2 {[%clk 0:01:57]}  Nc8 {[%clk 0:00:05]} 24. Nd5 {[%clk 0:01:55]}  Rd7 {[%clk 0:00:06]} 25. Bb5 {[%clk 0:01:53]}  f6 {[%clk 0:00:05]} 26. Qa2 {[%clk 0:01:48]}  Bf7 {[%clk 0:00:04]} 27. c4 {[%clk 0:01:47]}  Bxd5 {[%clk 0:00:03]} 28. Bxd7 {[%clk 0:01:43]}  Qxd7 {[%clk 0:00:02]} 29. exd5 {[%clk 0:01:42]}  b5 {[%clk 0:00:03]} 30. c5 {[%clk 0:01:41]}  dxc5 {[%clk 0:00:03]} 31. d6+ {[%clk 0:01:41]}  c4 {[%clk 0:00:04]} 32. dxe7 {[%clk 0:01:41]}  Nxe7 {[%clk 0:00:02]} 33. dxc4 {[%clk 0:01:39]} 1-0


[Site "https://www.chess.com"]

[Event "Titled Tuesday Blitz August 15 Early 2023"]
[White "Freile Martin, Javier"]
[Black "Aung Thant Zin"]
[WhiteFideId "3600165"]
[BlackFideId "13000063"]
[WhiteElo "2314"]
[BlackElo "2143"]
[Result "1/2-1/2"]
[Round "6"]
[TimeControl "180+1"]
[Date "2023.08.15"]
[WhiteClock "0:00:15"]
[BlackClock "0:00:15"]
[Board "179"]

1. c4 {[%clk 0:03:00]}  e5 {[%clk 0:02:59]} 2. Nc3 {[%clk 0:03:00]}  Nf6 {[%clk 0:02:59]} 3. Nf3 {[%clk 0:03:00]}  Nc6 {[%clk 0:03:00]} 4. a3 {[%clk 0:02:59]}  d5 {[%clk 0:02:57]} 5. cxd5 {[%clk 0:02:58]}  Nxd5 {[%clk 0:02:57]} 6. e4 {[%clk 0:02:58]}  Nf4 {[%clk 0:02:56]} 7. d3 {[%clk 0:02:53]}  Ng6 {[%clk 0:02:54]} 8. h4 {[%clk 0:02:52]}  h5 {[%clk 0:02:53]} 9. Be2 {[%clk 0:02:42]}  Bg4 {[%clk 0:02:52]} 10. g3 {[%clk 0:02:37]}  Bc5 {[%clk 0:02:48]} 11. Be3 {[%clk 0:02:33]}  Bxe3 {[%clk 0:02:37]} 12. fxe3 {[%clk 0:02:34]}  Qe7 {[%clk 0:02:37]} 13. O-O {[%clk 0:02:26]}  O-O-O {[%clk 0:02:33]} 14. Nd5 {[%clk 0:02:22]}  Qe8 {[%clk 0:02:23]} 15. Rc1 {[%clk 0:02:15]}  Be6 {[%clk 0:02:22]} 16. Ng5 {[%clk 0:02:04]}  Bxd5 {[%clk 0:02:17]} 17. exd5 {[%clk 0:02:04]}  Rxd5 {[%clk 0:02:17]} 18. Bf3 {[%clk 0:02:01]}  e4 {[%clk 0:02:06]} 19. Bxe4 {[%clk 0:01:57]}  Rxg5 {[%clk 0:02:05]} 20. hxg5 {[%clk 0:01:56]}  Qe5 {[%clk 0:02:02]} 21. Qf3 {[%clk 0:01:54]}  Nd8 {[%clk 0:01:42]} 22. Qf5+ {[%clk 0:01:50]}  Kb8 {[%clk 0:01:39]} 23. Qxe5 {[%clk 0:01:44]}  Nxe5 {[%clk 0:01:39]} 24. Rf5 {[%clk 0:01:41]}  Ng4 {[%clk 0:01:34]} 25. Re1 {[%clk 0:01:38]}  g6 {[%clk 0:01:34]} 26. Rff1 {[%clk 0:01:35]}  Re8 {[%clk 0:01:31]} 27. Bd5 {[%clk 0:01:32]}  Re7 {[%clk 0:01:31]} 28. e4 {[%clk 0:01:27]}  c6 {[%clk 0:01:31]} 29. Bc4 {[%clk 0:01:23]}  Re5 {[%clk 0:01:12]} 30. Bxf7 {[%clk 0:01:19]}  Rxg5 {[%clk 0:01:11]} 31. Bc4 {[%clk 0:01:16]}  Ne5 {[%clk 0:01:11]} 32. Rf8 {[%clk 0:01:14]}  Kc7 {[%clk 0:01:10]} 33. Kg2 {[%clk 0:01:13]}  h4 {[%clk 0:01:08]} 34. Re3 {[%clk 0:01:12]}  b5 {[%clk 0:00:57]} 35. Bb3 {[%clk 0:01:10]}  Ng4 {[%clk 0:00:57]} 36. Ref3 {[%clk 0:01:05]}  Ne5 {[%clk 0:00:56]} 37. Re3 {[%clk 0:00:58]}  Ng4 {[%clk 0:00:57]} 38. Re1 {[%clk 0:00:58]}  Ne5 {[%clk 0:00:56]} 39. Kh3 {[%clk 0:00:51]}  Rxg3+ {[%clk 0:00:43]} 40. Kxh4 {[%clk 0:00:51]}  g5+ {[%clk 0:00:38]} 41. Kh5 {[%clk 0:00:50]}  Rh3+ {[%clk 0:00:38]} 42. Kxg5 {[%clk 0:00:50]}  Rxd3 {[%clk 0:00:38]} 43. Bd1 {[%clk 0:00:45]}  Ne6+ {[%clk 0:00:37]} 44. Kf6 {[%clk 0:00:44]}  Nxf8 {[%clk 0:00:35]} 45. Kxe5 {[%clk 0:00:44]}  Nd7+ {[%clk 0:00:35]} 46. Kf4 {[%clk 0:00:43]}  Rd4 {[%clk 0:00:30]} 47. Ke3 {[%clk 0:00:41]}  c5 {[%clk 0:00:29]} 48. Be2 {[%clk 0:00:40]}  a6 {[%clk 0:00:29]} 49. Rh1 {[%clk 0:00:39]}  Ne5 {[%clk 0:00:27]} 50. Rh5 {[%clk 0:00:38]}  Nc4+ {[%clk 0:00:24]} 51. Bxc4 {[%clk 0:00:35]}  Rxc4 {[%clk 0:00:24]} 52. Rh7+ {[%clk 0:00:23]}  Kb6 {[%clk 0:00:23]} 53. Rh6+ {[%clk 0:00:23]}  Kb7 {[%clk 0:00:23]} 54. Kd3 {[%clk 0:00:21]}  Rd4+ {[%clk 0:00:22]} 55. Ke3 {[%clk 0:00:21]}  Rd7 {[%clk 0:00:20]} 56. e5 {[%clk 0:00:21]}  a5 {[%clk 0:00:19]} 57. Ke4 {[%clk 0:00:20]}  c4 {[%clk 0:00:20]} 58. e6 {[%clk 0:00:21]}  Re7 {[%clk 0:00:20]} 59. Ke5 {[%clk 0:00:21]}  Kc7 {[%clk 0:00:21]} 60. Rh4 {[%clk 0:00:21]}  Kc6 {[%clk 0:00:20]} 61. Rd4 {[%clk 0:00:20]}  Kc5 {[%clk 0:00:20]} 62. Rd5+ {[%clk 0:00:20]}  Kc6 {[%clk 0:00:21]} 63. Rd6+ {[%clk 0:00:20]}  Kc5 {[%clk 0:00:21]} 64. Rd7 {[%clk 0:00:20]}  Re8 {[%clk 0:00:21]} 65. Rc7+ {[%clk 0:00:19]}  Kb6 {[%clk 0:00:20]} 66. Rf7 {[%clk 0:00:18]}  b4 {[%clk 0:00:20]} 67. axb4 {[%clk 0:00:18]}  axb4 {[%clk 0:00:19]} 68. Kd6 {[%clk 0:00:18]}  c3 {[%clk 0:00:19]} 69. bxc3 {[%clk 0:00:18]}  bxc3 {[%clk 0:00:19]} 70. Rf3 {[%clk 0:00:19]}  Rc8 {[%clk 0:00:16]} 71. Rf1 {[%clk 0:00:17]}  c2 {[%clk 0:00:16]} 72. Kd7 {[%clk 0:00:17]}  c1=Q {[%clk 0:00:14]} 73. Rxc1 {[%clk 0:00:15]}  Rxc1 {[%clk 0:00:14]} 74. e7 {[%clk 0:00:16]}  Re1 {[%clk 0:00:15]} 75. e8=Q {[%clk 0:00:15]}  Rxe8 {[%clk 0:00:15]} 76. Kxe8 {[%clk 0:00:15]} 1/2-1/2


[Site "https://www.chess.com"]

[Event "Titled Tuesday Blitz August 15 Early 2023"]
[White "Novikova, Margarita"]
[Black "Samaganova, Aleksandra"]
[WhiteFideId "14109689"]
[BlackFideId "13800221"]
[WhiteElo "2129"]
[BlackElo "2313"]
[Result "0-1"]
[Round "6"]
[TimeControl "180+1"]
[Date "2023.08.15"]
[WhiteClock "0:01:20"]
[BlackClock "0:02:03"]
[Board "180"]

1. e4 {[%clk 0:03:00]}  c5 {[%clk 0:02:59]} 2. Nc3 {[%clk 0:03:00]}  e6 {[%clk 0:03:00]} 3. d3 {[%clk 0:03:00]}  a6 {[%clk 0:02:59]} 4. g3 {[%clk 0:03:00]}  b5 {[%clk 0:03:00]} 5. Bg2 {[%clk 0:02:58]}  Bb7 {[%clk 0:03:00]} 6. Nge2 {[%clk 0:02:56]}  Qc7 {[%clk 0:03:00]} 7. O-O {[%clk 0:02:55]}  Nf6 {[%clk 0:03:01]} 8. Bf4 {[%clk 0:02:52]}  d6 {[%clk 0:03:00]} 9. e5 {[%clk 0:02:33]}  Bxg2 {[%clk 0:02:55]} 10. exd6 {[%clk 0:02:32]}  Qb7 {[%clk 0:02:47]} 11. Ne4 {[%clk 0:02:04]}  Nxe4 {[%clk 0:02:23]} 12. dxe4 {[%clk 0:02:05]}  Bxf1 {[%clk 0:02:15]} 13. Qxf1 {[%clk 0:02:06]}  Nd7 {[%clk 0:02:14]} 14. e5 {[%clk 0:02:04]}  h6 {[%clk 0:02:04]} 15. h4 {[%clk 0:01:20]}  g5 {[%clk 0:02:03]} 0-1


[Site "https://www.chess.com"]

[Event "Titled Tuesday Blitz August 15 Early 2023"]
[White "Martin, Lewis"]
[Black "Johnson, Ben"]
[WhiteFideId "410551"]
[BlackFideId "2010917"]
[WhiteElo "2299"]
[BlackElo "2138"]
[Result "0-1"]
[Round "6"]
[TimeControl "180+1"]
[Date "2023.08.15"]
[WhiteClock "0:01:17"]
[BlackClock "0:01:18"]
[Board "181"]

1. e4 {[%clk 0:03:00]}  c5 {[%clk 0:02:57]} 2. Nf3 {[%clk 0:03:01]}  g6 {[%clk 0:02:57]} 3. d4 {[%clk 0:03:00]}  cxd4 {[%clk 0:02:58]} 4. Nxd4 {[%clk 0:03:01]}  Nf6 {[%clk 0:02:57]} 5. Nc3 {[%clk 0:03:01]}  d6 {[%clk 0:02:57]} 6. Be2 {[%clk 0:02:57]}  Bg7 {[%clk 0:02:56]} 7. Be3 {[%clk 0:02:58]}  O-O {[%clk 0:02:48]} 8. h3 {[%clk 0:02:54]}  Nc6 {[%clk 0:02:44]} 9. Nb3 {[%clk 0:02:52]}  a5 {[%clk 0:02:42]} 10. a4 {[%clk 0:02:50]}  Bd7 {[%clk 0:02:40]} 11. Qd2 {[%clk 0:02:45]}  Rc8 {[%clk 0:02:38]} 12. g4 {[%clk 0:02:43]}  Ne5 {[%clk 0:02:34]} 13. f4 {[%clk 0:02:42]}  Nc4 {[%clk 0:02:34]} 14. Bxc4 {[%clk 0:02:41]}  Rxc4 {[%clk 0:02:34]} 15. O-O-O {[%clk 0:02:38]}  Nxe4 {[%clk 0:02:30]} 16. Nxe4 {[%clk 0:02:38]}  Rxe4 {[%clk 0:02:30]} 17. Bd4 {[%clk 0:02:28]}  Bxa4 {[%clk 0:02:19]} 18. Bxg7 {[%clk 0:02:24]}  Kxg7 {[%clk 0:02:19]} 19. Nc5 {[%clk 0:02:22]}  Rc4 {[%clk 0:02:16]} 20. Nxb7 {[%clk 0:02:09]}  Qc7 {[%clk 0:02:04]} 21. Qxa5 {[%clk 0:01:36]}  Qxb7 {[%clk 0:01:44]} 22. Rh2 {[%clk 0:01:28]}  Ra8 {[%clk 0:01:38]} 23. Qd5 {[%clk 0:01:23]}  Qxd5 {[%clk 0:01:31]} 24. Rxd5 {[%clk 0:01:23]}  Rxf4 {[%clk 0:01:29]} 25. b3 {[%clk 0:01:20]}  Bc6 {[%clk 0:01:25]} 26. Rd3 {[%clk 0:01:19]}  Be4 {[%clk 0:01:19]} 27. Rf3 {[%clk 0:01:17]}  Rxf3 {[%clk 0:01:18]} 0-1


[Site "https://www.chess.com"]

[Event "Titled Tuesday Blitz August 15 Early 2023"]
[White "Ghosh, Chanchal Kumer"]
[Black "Blokhin, Sofia"]
[WhiteFideId "10201858"]
[BlackFideId "4508190"]
[WhiteElo "2125"]
[BlackElo "2292"]
[Result "1-0"]
[Round "6"]
[TimeControl "180+1"]
[Date "2023.08.15"]
[WhiteClock "0:00:42"]
[BlackClock "0:00:22"]
[Board "182"]

1. e4 {[%clk 0:03:00]}  c5 {[%clk 0:02:59]} 2. Nf3 {[%clk 0:03:01]}  e6 {[%clk 0:02:59]} 3. d4 {[%clk 0:03:02]}  cxd4 {[%clk 0:02:59]} 4. Nxd4 {[%clk 0:03:03]}  a6 {[%clk 0:02:59]} 5. Be3 {[%clk 0:03:01]}  Nf6 {[%clk 0:02:58]} 6. Bd3 {[%clk 0:02:57]}  Qc7 {[%clk 0:02:57]} 7. O-O {[%clk 0:02:56]}  d5 {[%clk 0:02:56]} 8. Nc3 {[%clk 0:02:45]}  e5 {[%clk 0:02:51]} 9. exd5 {[%clk 0:02:36]}  exd4 {[%clk 0:02:49]} 10. Bxd4 {[%clk 0:02:36]}  Be7 {[%clk 0:02:39]} 11. Bxf6 {[%clk 0:02:07]}  Bxf6 {[%clk 0:02:35]} 12. Re1+ {[%clk 0:02:06]}  Kf8 {[%clk 0:02:30]} 13. Ne4 {[%clk 0:01:49]}  Be5 {[%clk 0:02:18]} 14. h3 {[%clk 0:01:45]}  Bd6 {[%clk 0:02:15]} 15. c4 {[%clk 0:01:33]}  Nd7 {[%clk 0:02:12]} 16. Qe2 {[%clk 0:01:26]}  g6 {[%clk 0:01:42]} 17. Rac1 {[%clk 0:01:01]}  Nc5 {[%clk 0:01:37]} 18. Nxd6 {[%clk 0:00:58]}  Qxd6 {[%clk 0:01:35]} 19. b4 {[%clk 0:00:51]}  Nxd3 {[%clk 0:01:31]} 20. Qxd3 {[%clk 0:00:51]}  Bf5 {[%clk 0:01:31]} 21. Qd4 {[%clk 0:00:50]}  f6 {[%clk 0:01:12]} 22. c5 {[%clk 0:00:48]}  Qd8 {[%clk 0:01:11]} 23. d6 {[%clk 0:00:45]}  Kg7 {[%clk 0:00:34]} 24. Re7+ {[%clk 0:00:43]}  Kg8 {[%clk 0:00:25]} 25. Qd5+ {[%clk 0:00:42]}  Kf8 {[%clk 0:00:22]} 26. Qf7# {[%clk 0:00:42]} 1-0


[Site "https://www.chess.com"]

[Event "Titled Tuesday Blitz August 15 Early 2023"]
[White "Preobrazhenska_D2011"]
[Black "Winkels, Marcel"]
[BlackFideId "1003887"]
[WhiteElo "2287"]
[BlackElo "2080"]
[Result "1-0"]
[Round "6"]
[TimeControl "180+1"]
[Date "2023.08.15"]
[WhiteClock "0:01:45"]
[BlackClock "0:01:04"]
[Board "187"]

1. e4 {[%clk 0:03:00]}  c5 {[%clk 0:02:59]} 2. Nf3 {[%clk 0:03:00]}  e6 {[%clk 0:02:59]} 3. g3 {[%clk 0:03:00]}  Nf6 {[%clk 0:02:58]} 4. Qe2 {[%clk 0:02:59]}  d6 {[%clk 0:02:58]} 5. Bg2 {[%clk 0:02:59]}  Nc6 {[%clk 0:02:58]} 6. O-O {[%clk 0:02:59]}  Be7 {[%clk 0:02:59]} 7. c3 {[%clk 0:02:58]}  O-O {[%clk 0:02:58]} 8. d4 {[%clk 0:02:58]}  cxd4 {[%clk 0:02:58]} 9. cxd4 {[%clk 0:02:59]}  d5 {[%clk 0:02:57]} 10. e5 {[%clk 0:02:58]}  Ne4 {[%clk 0:02:57]} 11. Nc3 {[%clk 0:02:57]}  Nxc3 {[%clk 0:02:56]} 12. bxc3 {[%clk 0:02:58]}  Bd7 {[%clk 0:02:55]} 13. Nd2 {[%clk 0:02:53]}  Rc8 {[%clk 0:02:54]} 14. f4 {[%clk 0:02:51]}  Na5 {[%clk 0:02:48]} 15. Qd3 {[%clk 0:02:49]}  Qb6 {[%clk 0:02:45]} 16. Rb1 {[%clk 0:02:44]}  Qc6 {[%clk 0:02:39]} 17. Bb2 {[%clk 0:02:23]}  Nc4 {[%clk 0:02:34]} 18. Nxc4 {[%clk 0:02:21]}  Qxc4 {[%clk 0:02:34]} 19. Qd2 {[%clk 0:02:13]}  a6 {[%clk 0:02:22]} 20. Ba1 {[%clk 0:02:09]}  Bb5 {[%clk 0:02:19]} 21. Rf2 {[%clk 0:01:58]}  Qc6 {[%clk 0:02:16]} 22. f5 {[%clk 0:01:53]}  Bd8 {[%clk 0:01:51]} 23. f6 {[%clk 0:01:48]}  Ba5 {[%clk 0:01:04]} 24. Qg5 {[%clk 0:01:45]} 1-0


[Site "https://www.chess.com"]

[Event "Titled Tuesday Blitz August 15 Early 2023"]
[White "Osiecki, Stanislaw"]
[Black "Barwinska, Ewa"]
[WhiteFideId "1102990"]
[BlackFideId "21833761"]
[WhiteElo "2043"]
[BlackElo "2278"]
[Result "0-1"]
[Round "6"]
[TimeControl "180+1"]
[Date "2023.08.15"]
[WhiteClock "0:01:07"]
[BlackClock "0:01:43"]
[Board "190"]

1. e4 {[%clk 0:02:52]}  c5 {[%clk 0:03:00]} 2. c3 {[%clk 0:02:52]}  Nf6 {[%clk 0:02:58]} 3. e5 {[%clk 0:02:51]}  Nd5 {[%clk 0:02:59]} 4. d4 {[%clk 0:02:51]}  cxd4 {[%clk 0:03:00]} 5. Nf3 {[%clk 0:02:52]}  Nc6 {[%clk 0:02:56]} 6. cxd4 {[%clk 0:02:50]}  d6 {[%clk 0:02:55]} 7. Bc4 {[%clk 0:02:50]}  Nb6 {[%clk 0:02:53]} 8. Bb5 {[%clk 0:02:50]}  dxe5 {[%clk 0:02:50]} 9. Nxe5 {[%clk 0:02:50]}  Bd7 {[%clk 0:02:51]} 10. Nxd7 {[%clk 0:02:51]}  Qxd7 {[%clk 0:02:50]} 11. O-O {[%clk 0:02:51]}  e6 {[%clk 0:02:49]} 12. Be3 {[%clk 0:02:51]}  Bd6 {[%clk 0:02:44]} 13. Nc3 {[%clk 0:02:51]}  O-O {[%clk 0:02:44]} 14. Qg4 {[%clk 0:02:48]}  a6 {[%clk 0:02:44]} 15. Bd3 {[%clk 0:02:47]}  Ne7 {[%clk 0:02:33]} 16. Qh3 {[%clk 0:02:36]}  h6 {[%clk 0:02:23]} 17. Bxh6 {[%clk 0:02:09]}  gxh6 {[%clk 0:02:24]} 18. Qxh6 {[%clk 0:02:09]}  f5 {[%clk 0:02:19]} 19. Qg5+ {[%clk 0:02:03]}  Kf7 {[%clk 0:02:18]} 20. Qh5+ {[%clk 0:02:01]}  Ng6 {[%clk 0:02:18]} 21. h3 {[%clk 0:01:46]}  Rh8 {[%clk 0:02:13]} 22. Qe2 {[%clk 0:01:43]}  Nf4 {[%clk 0:02:10]} 23. Qf3 {[%clk 0:01:43]}  Rag8 {[%clk 0:02:05]} 24. Rfe1 {[%clk 0:01:26]}  Rxg2+ {[%clk 0:01:52]} 25. Qxg2 {[%clk 0:01:17]}  Nxg2 {[%clk 0:01:51]} 26. Kxg2 {[%clk 0:01:17]}  Qc6+ {[%clk 0:01:47]} 27. f3 {[%clk 0:01:07]}  Rg8+ {[%clk 0:01:43]} 0-1


[Site "https://www.chess.com"]

[Event "Titled Tuesday Blitz August 15 Early 2023"]
[White "AndresDelgado77"]
[Black "Zepeda Berlanga, Jan Enrique"]
[BlackFideId "5132355"]
[WhiteElo "2263"]
[BlackElo "1958"]
[Result "0-1"]
[Round "6"]
[TimeControl "180+1"]
[Date "2023.08.15"]
[WhiteClock "0:00:00"]
[BlackClock "0:00:04"]
[Board "191"]

1. e4 {[%clk 0:02:59]}  c5 {[%clk 0:03:00]} 2. Nc3 {[%clk 0:02:56]}  d6 {[%clk 0:02:58]} 3. g3 {[%clk 0:02:56]}  Nf6 {[%clk 0:02:58]} 4. Bg2 {[%clk 0:02:55]}  g6 {[%clk 0:02:58]} 5. f4 {[%clk 0:02:55]}  Bg7 {[%clk 0:02:59]} 6. Nf3 {[%clk 0:02:56]}  Nc6 {[%clk 0:02:59]} 7. d3 {[%clk 0:02:53]}  O-O {[%clk 0:02:58]} 8. O-O {[%clk 0:02:52]}  Rb8 {[%clk 0:02:57]} 9. Bd2 {[%clk 0:02:45]}  Bd7 {[%clk 0:02:47]} 10. h3 {[%clk 0:02:44]}  b5 {[%clk 0:02:36]} 11. g4 {[%clk 0:02:29]}  b4 {[%clk 0:02:29]} 12. Ne2 {[%clk 0:02:29]}  Ne8 {[%clk 0:02:05]} 13. b3 {[%clk 0:02:19]}  f5 {[%clk 0:01:48]} 14. exf5 {[%clk 0:01:49]}  gxf5 {[%clk 0:01:46]} 15. Ng3 {[%clk 0:01:43]}  fxg4 {[%clk 0:01:43]} 16. Ng5 {[%clk 0:01:43]}  gxh3 {[%clk 0:01:37]} 17. Bd5+ {[%clk 0:01:42]}  e6 {[%clk 0:01:34]} 18. Qh5 {[%clk 0:01:22]}  Nf6 {[%clk 0:01:26]} 19. Nxe6 {[%clk 0:01:21]}  Bxe6 {[%clk 0:01:01]} 20. Bxe6+ {[%clk 0:01:20]}  Kh8 {[%clk 0:01:01]} 21. Qxh3 {[%clk 0:01:20]}  Nd4 {[%clk 0:00:52]} 22. f5 {[%clk 0:00:46]}  Nxc2 {[%clk 0:00:39]} 23. Bg5 {[%clk 0:00:43]}  Qc7 {[%clk 0:00:30]} 24. Rac1 {[%clk 0:00:36]}  Nd4 {[%clk 0:00:29]} 25. Rce1 {[%clk 0:00:28]}  Rbe8 {[%clk 0:00:26]} 26. Qh4 {[%clk 0:00:23]}  Ng8 {[%clk 0:00:11]} 27. Nh5 {[%clk 0:00:19]}  Nxe6 {[%clk 0:00:08]} 28. fxe6 {[%clk 0:00:16]}  Rxf1+ {[%clk 0:00:08]} 29. Kxf1 {[%clk 0:00:14]}  Qc6 {[%clk 0:00:07]} 30. Kg1 {[%clk 0:00:13]}  Qf3 {[%clk 0:00:06]} 31. Nxg7 {[%clk 0:00:11]}  Kxg7 {[%clk 0:00:06]} 32. Rf1 {[%clk 0:00:11]}  Qd5 {[%clk 0:00:04]} 33. Rf7+ {[%clk 0:00:11]}  Kg6 {[%clk 0:00:05]} 34. Qxh7+ {[%clk 0:00:08]}  Kxg5 {[%clk 0:00:05]} 35. Qg7+ {[%clk 0:00:00]}  Kh5 {[%clk 0:00:04]} 0-1


[Site "https://www.chess.com"]

[Event "Titled Tuesday Blitz August 15 Early 2023"]
[White "Juicy_Fork"]
[Black "cthake"]
[WhiteElo "2251"]
[BlackElo "1820"]
[Result "1-0"]
[Round "6"]
[TimeControl "180+1"]
[Date "2023.08.15"]
[WhiteClock "0:00:43"]
[BlackClock "0:00:00"]
[Board "194"]

1. e4 {[%clk 0:03:00]}  c5 {[%clk 0:02:59]} 2. Nf3 {[%clk 0:03:00]}  Nc6 {[%clk 0:02:58]} 3. Bb5 {[%clk 0:03:00]}  d6 {[%clk 0:02:53]} 4. O-O {[%clk 0:02:59]}  a6 {[%clk 0:02:51]} 5. Bxc6+ {[%clk 0:03:00]}  bxc6 {[%clk 0:02:51]} 6. c3 {[%clk 0:02:58]}  e5 {[%clk 0:02:49]} 7. d4 {[%clk 0:02:58]}  cxd4 {[%clk 0:02:47]} 8. cxd4 {[%clk 0:02:59]}  Bg4 {[%clk 0:02:30]} 9. Qc2 {[%clk 0:02:46]}  Bxf3 {[%clk 0:02:29]} 10. Qxc6+ {[%clk 0:02:45]}  Ke7 {[%clk 0:02:29]} 11. gxf3 {[%clk 0:02:44]}  Rc8 {[%clk 0:02:18]} 12. Qd5 {[%clk 0:02:36]}  exd4 {[%clk 0:02:06]} 13. Qxd4 {[%clk 0:02:35]}  Nf6 {[%clk 0:01:59]} 14. Bg5 {[%clk 0:02:34]}  Ke8 {[%clk 0:01:46]} 15. Nc3 {[%clk 0:02:34]}  Be7 {[%clk 0:01:45]} 16. Rfe1 {[%clk 0:02:33]}  Rc5 {[%clk 0:01:44]} 17. Be3 {[%clk 0:02:06]}  Rh5 {[%clk 0:01:18]} 18. Rad1 {[%clk 0:01:58]}  Qd7 {[%clk 0:01:17]} 19. Nd5 {[%clk 0:01:45]}  Qh3 {[%clk 0:01:06]} 20. Bf4 {[%clk 0:01:41]}  g5 {[%clk 0:00:57]} 21. Nxf6+ {[%clk 0:01:36]}  Bxf6 {[%clk 0:00:47]} 22. Qxf6 {[%clk 0:01:35]}  gxf4 {[%clk 0:00:46]} 23. Qxh8+ {[%clk 0:01:34]}  Ke7 {[%clk 0:00:46]} 24. Rd5 {[%clk 0:01:20]}  Qxh2+ {[%clk 0:00:41]} 25. Kf1 {[%clk 0:01:20]}  Qh3+ {[%clk 0:00:35]} 26. Ke2 {[%clk 0:01:19]}  Rh6 {[%clk 0:00:15]} 27. Qb8 {[%clk 0:01:05]}  Qd7 {[%clk 0:00:12]} 28. Rc1 {[%clk 0:00:55]}  Ke6 {[%clk 0:00:10]} 29. Rc7 {[%clk 0:00:50]}  Qa4 {[%clk 0:00:07]} 30. Qc8+ {[%clk 0:00:47]}  Kf6 {[%clk 0:00:06]} 31. Rxd6+ {[%clk 0:00:46]}  Kg7 {[%clk 0:00:05]} 32. Qg4+ {[%clk 0:00:44]}  Rg6 {[%clk 0:00:04]} 33. Rxg6+ {[%clk 0:00:44]}  hxg6 {[%clk 0:00:00]} 34. Qd7 {[%clk 0:00:43]} 1-0


[Site "https://www.chess.com"]

[Event "Titled Tuesday Blitz August 15 Early 2023"]
[White "Slovineanu, Viacheslav"]
[Black "Maluco_do_Natal_00"]
[WhiteFideId "13900510"]
[WhiteElo "2353"]
[BlackElo "2065"]
[Result "1-0"]
[Round "6"]
[TimeControl "180+1"]
[Date "2023.08.15"]
[WhiteClock "0:00:10"]
[BlackClock "0:00:00"]
[Board "195"]

1. d4 {[%clk 0:02:58]}  d5 {[%clk 0:02:29]} 2. Nf3 {[%clk 0:02:56]}  Nf6 {[%clk 0:02:29]} 3. c4 {[%clk 0:02:56]}  c6 {[%clk 0:02:29]} 4. e3 {[%clk 0:02:56]}  g6 {[%clk 0:02:29]} 5. Nc3 {[%clk 0:02:54]}  Bg7 {[%clk 0:02:29]} 6. Be2 {[%clk 0:02:48]}  O-O {[%clk 0:02:27]} 7. O-O {[%clk 0:02:47]}  a6 {[%clk 0:02:28]} 8. b3 {[%clk 0:02:45]}  Nbd7 {[%clk 0:02:27]} 9. Bb2 {[%clk 0:02:39]}  Re8 {[%clk 0:02:27]} 10. Rc1 {[%clk 0:02:34]}  h6 {[%clk 0:02:23]} 11. cxd5 {[%clk 0:02:30]}  cxd5 {[%clk 0:02:23]} 12. Na4 {[%clk 0:02:25]}  e6 {[%clk 0:02:17]} 13. Qe1 {[%clk 0:02:06]}  Ne4 {[%clk 0:02:13]} 14. Nd2 {[%clk 0:02:05]}  b5 {[%clk 0:02:09]} 15. Nxe4 {[%clk 0:02:03]}  dxe4 {[%clk 0:02:09]} 16. Nc5 {[%clk 0:01:59]}  Nxc5 {[%clk 0:02:08]} 17. Rxc5 {[%clk 0:01:59]}  Bb7 {[%clk 0:02:08]} 18. a4 {[%clk 0:01:52]}  Bf8 {[%clk 0:01:53]} 19. Rc2 {[%clk 0:01:48]}  bxa4 {[%clk 0:01:52]} 20. bxa4 {[%clk 0:01:48]}  Bd5 {[%clk 0:01:52]} 21. Qa1 {[%clk 0:01:43]}  Qa5 {[%clk 0:01:37]} 22. Rfc1 {[%clk 0:01:23]}  Bb3 {[%clk 0:01:28]} 23. Rc6 {[%clk 0:01:23]}  Qxa4 {[%clk 0:01:25]} 24. Qxa4 {[%clk 0:01:15]}  Bxa4 {[%clk 0:01:25]} 25. Rxa6 {[%clk 0:01:16]}  Rxa6 {[%clk 0:01:24]} 26. Bxa6 {[%clk 0:01:16]}  Rb8 {[%clk 0:01:18]} 27. Bc3 {[%clk 0:01:09]}  Bd6 {[%clk 0:01:03]} 28. g3 {[%clk 0:01:04]}  Bc6 {[%clk 0:00:52]} 29. Bb4 {[%clk 0:00:53]}  Rxb4 {[%clk 0:00:29]} 30. Rxc6 {[%clk 0:00:53]}  Bf8 {[%clk 0:00:20]} 31. h4 {[%clk 0:00:52]}  Rb1+ {[%clk 0:00:16]} 32. Kg2 {[%clk 0:00:50]}  Ra1 {[%clk 0:00:15]} 33. Bb7 {[%clk 0:00:49]}  Rb1 {[%clk 0:00:13]} 34. Rc7 {[%clk 0:00:43]}  f5 {[%clk 0:00:12]} 35. d5 {[%clk 0:00:26]}  exd5 {[%clk 0:00:10]} 36. Bxd5+ {[%clk 0:00:26]}  Kh8 {[%clk 0:00:09]} 37. Bf7 {[%clk 0:00:24]}  g5 {[%clk 0:00:06]} 38. h5 {[%clk 0:00:17]}  Rb8 {[%clk 0:00:02]} 39. Bg6 {[%clk 0:00:14]}  f4 {[%clk 0:00:02]} 40. Bxe4 {[%clk 0:00:11]}  fxg3 {[%clk 0:00:00]} 41. Kxg3 {[%clk 0:00:10]} 1-0


[Site "https://www.chess.com"]